Cogmind - Beta 14 @@@ ROGUE MODE // 2024.10.20 @ 13:07:10 Player: saltine Result: Destroyed by G-47 Trooper with Particle Gun Performance ------------- Evolutions (2) 1000 Regions Visited (6) 1200 Robots Destroyed (120) 600 Value Destroyed (4519) 4519 Prototype IDs (7) 140 Alien Tech Used (0) 0 Bonus (938) 938 TOTAL SCORE: 8397 Bonus ------- High Alert Combat Kills 749 Entered Garrisons 200 Friendly Fire -11 Cogmind --------- Core Integrity 0/550 Matter 4/300 Energy 35/100 System Corruption 0% Temperature Cool (9) Movement Treading (240) Ox1 Location -8/Materials Parts ------- > --- POWER (1) -------- (None) > --- PROPULSION (3) --- Light Treads Light Treads > --- UTILITY (5) ------ Improved Heat Sink High-capacity Storage Unit Hardened Light Armor Plating > --- WEAPON (2) ------- Heavy Particle Gun Assault Cannon > --- INVENTORY (20) --- Aluminum Leg Compact Battery (200) Seismic Detector Seismic Detector Hardened Light Armor Plating Hardened Light Armor Plating Hacking Suite Heavy Particle Gun Assault Cannon Multitool Axe Peak State ------------ > --- POWER ------------ Light Deuterium Engine > --- PROPULSION ------- Light Treads Light Treads Armored Treads > --- UTILITY ---------- Improved Heat Sink High-capacity Storage Unit Hardened Light Armor Plating Hardened Light Armor Plating Hardlight Generator > --- WEAPON ----------- Heavy Particle Gun Assault Cannon > --- INVENTORY -------- Light Deuterium Engine Light Treads Light Treads Light Treads Armored Treads Compact Battery Seismic Detector Seismic Detector Hardened Light Armor Plating Hardened Light Armor Plating Hardened Light Armor Plating Hardened Light Armor Plating Heavy Particle Gun Particle Cannon Assault Cannon Assault Cannon Assault Cannon Grenade Launcher Rocket Launcher Multitool [Rating: 30] Favorites ----------- Power Light Deuterium Engine Engine Light Deuterium Engine Propulsion Light Treads Treads Light Treads Leg Aluminum Leg Wheel Subdweller Monowheel Utility Hardened Light Armor Plating Device Improved Heat Sink Storage Medium Storage Unit Hackware Hacking Suite Protection Hardened Light Armor Plating Weapon Light Cannon Energy Gun Heavy Particle Gun Energy Cannon Particle Cannon Ballistic Gun Makeshift Shrapnel Gun Ballistic Cannon Light Cannon Launcher Rocket Launcher Special Weapon Mining Laser Build | -11 -10 -10 -10 -8 -8 -8 ------- Run | Yrd Mat Min Sub Mat Gar Mat Slots Evolved 4 | . . . . 4 . . Power . | . . . . . . . Propulsion 1 | . . . . 1 . . Utility 3 | . . . . 3 . . Weapon . | . . . . . . . Parts Attached 91 | 3 . 5 21 29 17 16 Power 4 | . . . 1 2 1 . Engine 4 | . . . 1 2 1 . Core . | . . . . . . . Reactor . | . . . . . . . Propulsion 20 | 2 . 1 3 5 4 5 Treads 18 | 2 . 1 1 5 4 5 Leg . | . . . . . . . Wheel 2 | . . . 2 . . . Hover . | . . . . . . . Flight . | . . . . . . . Utility 27 | 1 . 1 1 13 8 3 Device 10 | 1 . . . 4 4 1 Storage 4 | . . 1 . 3 . . Processor . | . . . . . . . Hackware 1 | . . . . 1 . . Protection 12 | . . . 1 5 4 2 Artifact . | . . . . . . . Weapon 40 | . . 3 16 9 4 8 Energy Gun 2 | . . . . . 1 1 Energy Cannon 4 | . . . 2 1 . 1 Ballistic Gun 9 | . . 1 6 2 . . Ballistic Cannon 11 | . . 1 3 3 1 3 Launcher 8 | . . . 1 3 1 3 Special Weapon 6 | . . 1 4 . 1 . Impact Weapon . | . . . . . . . Slashing Weapon . | . . . . . . . Piercing Weapon . | . . . . . . . Special Melee Weapon . | . . . . . . . Unidentified Prototypes 1 | . . . . . . 1 Parts Lost 34 | . 1 3 4 8 4 14 Power 3 | . . 1 . . 1 1 Propulsion 12 | . . 1 2 4 . 5 Utility 9 | . 1 . 1 . 3 4 Weapon 10 | . . 1 1 4 . 4 Highest Loss Streak 11 | . 1 3 1 2 3 11 To Critical Strikes . | . . . . . . . Average Slot Usage (%) 90 | . 97 79 87 86 100 93 Engine 7 | . 14 2 5 9 9 7 Treads 23 | . 28 28 21 20 27 25 Wheel 2 | . . . 5 . . . Device 7 | . 11 . . 11 14 9 Storage 11 | . 14 19 14 9 9 9 Protection 13 | . . . 11 16 21 24 Energy Gun 1 | . . . . . 4 8 Energy Cannon 2 | . . . 1 5 3 . Ballistic Gun 8 | . 28 27 12 4 . . Ballistic Cannon 8 | . . . 12 6 9 9 Peak Build Rating 30 | 7 8 7 17 26 30 30 Average Rating 17 | 6 7 6 10 22 28 27 On Entrance 13 | 6 7 7 7 16 26 28 Naked Turns . | . . . . . . . Heaviest Build 72 | 14 14 19 29 66 72 72 Greatest Support 60 | 40 40 40 40 60 60 60 Greatest Overweight (x) 1 | . . . 1 1 1 1 Average Overweight (x) . | . . . . . 1 . Largest Inventory Capacity 20 | 8 8 10 10 20 20 20 Average Capacity 13 | 8 8 8 10 14 20 20 Most Carried 20 | 6 8 8 10 20 20 20 Average Carried 12 | 4 7 7 9 13 19 18 Final Capacity 20 | 8 8 10 10 20 20 20 Final Carried 19 | 5 8 8 8 19 18 11 Class Distribution -------------------- 67% | Mutant 22% | Derelict-Mutant 10% | Scavenger-Mutant Dominant Class ---------------- Mutant | -10/Materials Mutant | -10/Mines Mutant | -10/Subcaves Mutant | -8/Materials Mutant | -8/Garrison Scavenger-Mutant | -8/Materials Resources | -11 -10 -10 -10 -8 -8 -8 ----------- Run | Yrd Mat Min Sub Mat Gar Mat Matter Collected 2503 | 254 89 100 548 904 519 89 Remotely . | . . . . . . . Salvage Created 3389 | 88 231 152 508 1012 674 724 Parts 214 | 9 19 6 33 57 45 45 Haulers Intercepted 4 | . . . . 4 . . Recyclers Shooed 1 | . . 1 . . . . Parts Field Recycled . | . . . . . . . Retrieved Matter . | . . . . . . . Parts Self-Destructed 6 | . . . 6 . . . Prevented . | . . . . . . . Kills | -11 -10 -10 -10 -8 -8 -8 ------- Run | Yrd Mat Min Sub Mat Gar Mat Combat Hostiles Destroyed 101 | . 7 3 16 30 23 22 Guns 31 | . 7 3 5 8 2 6 Cannons 48 | . . . 10 10 18 10 AOE 22 | . . . 1 12 3 6 Classes Destroyed 15 | 2 3 2 2 3 2 1 Worker 5 | . . 1 . 2 . 2 Builder 3 | . 1 . . . . 2 Tunneler 3 | 2 . . . 1 . . Hauler 4 | . . . . 4 . . Recycler 1 | 1 . . . . . . Mechanic 1 | . . . . . . 1 Operator 2 | . . . . 2 . . Swarmer 22 | . 3 . . 7 8 4 Grunt 44 | . 4 2 . 15 10 13 Duelist 3 | . . . . . 1 2 Sentry 14 | . . 1 . 7 3 3 Demolisher 1 | . . . . . 1 . Hunter 1 | . . . . 1 . . Artisan 1 | . . . 1 . . . Subdweller 16 | . . . 16 . . . Best Kill Streak 17 | 2 3 2 3 7 5 17 Combat Bots Only 12 | . 3 1 3 7 5 12 Max Kills in Single Turn 4 | 1 1 1 1 4 1 4 Gunslinging . | . . . . . . . Exploded 4 | . . . 1 4 1 2 Melee . | . . . . . . . Uniques/NPCs Destroyed . | . . . . . . . Combat | -11 -10 -10 -10 -8 -8 -8 -------- Run | Yrd Mat Min Sub Mat Gar Mat Hostile Shots Fired 561 | . 28 20 62 130 149 172 Missed 124 | . 6 4 13 34 32 35 Damage Taken 6754 | . 249 250 1016 1521 1341 2377 Core 783 | . 18 31 176 178 111 269 Absorbed by Shields 337 | . . . . . 337 . Core Remaining (%) 55 | 100 . . 10 . . . Volleys Fired 381 | 12 18 23 91 96 86 55 Largest 2 | 2 2 2 2 2 2 2 Hottest 119 | 40 40 100 119 112 112 99 Shots Fired 622 | 24 36 41 137 148 146 90 Gun 273 | 24 36 37 54 57 27 38 Cannon 307 | . . . 64 82 116 45 Launcher 22 | . . . 3 9 3 7 Special 20 | . . 4 16 . . . Kinetic 409 | 24 36 37 109 94 64 45 Thermal 191 | . . 4 25 45 79 38 Explosive 22 | . . . 3 9 3 7 Electromagnetic . | . . . . . . . Robot Hit Streak 18 | 3 12 17 18 16 9 15 Robot Miss Streak 7 | 4 2 1 3 7 4 5 Penetration Max . | . . . . . . . Secondary Targets 4 | . 2 1 1 . . . Max Gunslinging Chain 1 | . 1 1 1 . . . Shots Hit Robots 406 | 12 25 33 80 110 84 62 Core Hits 230 | 5 14 10 36 72 41 52 Critical Kills . | . . . . . . . Critical Parts Destroyed . | . . . . . . . Critical Strikes 11 | . . . 2 2 5 2 Burn 3 | . . . . . 3 . Blast 8 | . . . 2 2 2 2 Melee Attacks . | . . . . . . . Impact . | . . . . . . . Slashing . | . . . . . . . Piercing . | . . . . . . . Sneak Attacks . | . . . . . . . Combat Hostiles . | . . . . . . . Follow-up Attacks . | . . . . . . . Damage Inflicted 10125 | 119 286 358 1584 3250 2112 2416 Guns 2922 | 119 269 358 648 730 300 498 Cannons 4230 | . . . 662 1248 1533 787 Explosions 2921 | . . . 274 1258 278 1111 Melee . | . . . . . . . Ramming 52 | . 17 . . 14 1 20 Kinetic 5002 | 119 269 358 1171 1340 958 787 Thermal 2150 | . . . 139 638 875 498 Explosive 2921 | . . . 274 1258 278 1111 Electromagnetic . | . . . . . . . Impact . | . . . . . . . Slashing . | . . . . . . . Piercing . | . . . . . . . Highest Corruption . | . . . . . . . Average Corruption . | . . . . . . . Corruption Purged . | . . . . . . . Corruption Blocked . | . . . . . . . Overload Shots . | . . . . . . . Overflow Damage 76 | . . . . 32 36 8 Projectiles 3 | . . . . . 3 . Explosions 73 | . . . . 32 33 8 Melee . | . . . . . . . Knockbacks 28 | . . . 5 4 11 8 Impact . | . . . . . . . Kinetic 28 | . . . 5 4 11 8 Secondary . | . . . . . . . Self-Inflicted Damage 362 | . . . . 98 . 264 Shots 11 | . . . . 4 . 7 Rammed 8 | . 5 . . . 1 2 Targets Rammed 10 | . 6 . . 1 1 2 Kicked . | . . . . . . . Crushed 2 | . 1 . . 1 . . Highest Temperature 467 | . 9 18 275 213 333 467 Average Temperature 86 | . 7 8 164 53 85 137 Received Heat Transfer 2752 | . 93 141 464 603 542 909 Effects 4 | . . . . 1 2 1 Shutdowns 1 | . . . . . . 1 Energy Bleed 1 | . . . . . 1 . Interference 1 | . . . . 1 . . Damage (minor) 1 | . . . . . 1 . Siege Activations . | . . . . . . . Robots Corrupted . | . . . . . . . Combat Hostiles . | . . . . . . . Parts Fried . | . . . . . . . Impact Corruptions . | . . . . . . . Robots Melted . | . . . . . . . Combat Hostiles . | . . . . . . . Parts Melted 3 | . . 1 . 1 1 . Heat Transferred 4097 | . . . 185 1147 1803 962 Parts Sabotaged . | . . . . . . . Parts Stolen . | . . . . . . . Parts Stripped . | . . . . . . . Power Chain Reactions . | . . . . . . . Alert | -11 -10 -10 -10 -8 -8 -8 ------- Run | Yrd Mat Min Sub Mat Gar Mat Peak Influence 1218 | 15 126 102 . 510 1218 890 Initial 593 | . 9 42 . . 331 593 Average 458 | 6 90 86 . 258 873 703 Maximum Alert Level 4 | . . . . 2 4 3 Low Security (%) 29 | 100 100 100 . 26 . . Level 1 29 | . . . . 68 7 . Level 2 11 | . . . . 5 17 48 Level 3 21 | . . . . . 53 51 Level 4 7 | . . . . . 22 . Level 5 . | . . . . . . . High Security . | . . . . . . . Max Security . | . . . . . . . Squads Dispatched 13 | . 1 . . 5 . 7 Investigation 1 | . . . . . . 1 Extermination . | . . . . . . . Reinforcement 4 | . 1 . . 1 . 2 Assault 1 | . . . . . . 1 Garrison 7 | . . . . 4 . 3 Intercept . | . . . . . . . Searches Triggered . | . . . . . . . Construction Impeded 1 | . . . . . . 1 Haulers Reinforced . | . . . . . . . Active Scanning Responses . | . . . . . . . Cargo Convoy Interrupts . | . . . . . . . Stealth | -11 -10 -10 -10 -8 -8 -8 --------- Run | Yrd Mat Min Sub Mat Gar Mat Distress Signals 6 | . 1 . . 3 . 2 Communications Jammed . | . . . . . . . Distress Signals . | . . . . . . . Times Spotted 147 | . 11 4 16 47 32 37 Peak Tracking Total 9 | . 3 2 3 7 7 9 Tactical Retreats 5 | . . . . . 4 1 Traps | -11 -10 -10 -10 -8 -8 -8 ------- Run | Yrd Mat Min Sub Mat Gar Mat Traps Triggered 11 | . . . . . 11 . Indirectly . | . . . . . . . Trap Hack Attempts . | . . . . . . . Triggered . | . . . . . . . Disarmed . | . . . . . . . Reprogrammed . | . . . . . . . Reused . | . . . . . . . Traps Extracted . | . . . . . . . Installed . | . . . . . . . Triggered 1 | . . . 1 . . . Machines | -11 -10 -10 -10 -8 -8 -8 ---------- Run | Yrd Mat Min Sub Mat Gar Mat Machines Disabled 8 | . . . . 3 5 . Max in Single Turn 1 | . . . . 1 1 . Garrison Relay 3 | . . . . . 3 . Machines Repaired . | . . . . . . . Machines Dismantled . | . . . . . . . Machines Sabotaged . | . . . . . . . Overloaded Fab Kills . | . . . . . . . Hacking | -11 -10 -10 -10 -8 -8 -8 --------- Run | Yrd Mat Min Sub Mat Gar Mat Machines Accessed 20 | . 3 . 1 12 3 1 Terminals 16 | . 3 . . 10 3 . Fabricators . | . . . . . . . Repair Stations . | . . . . . . . Recycling Units 1 | . . . . 1 . . Scanalyzers . | . . . . . . . Garrison Access 2 | . . . . 1 . 1 Total Hacks 50 | . 8 . 5 27 5 5 Successful 25 | . 5 . 5 15 . . Failed 25 | . 3 . . 12 5 5 Catastrophic 2 | . . . . 1 1 . Database Lockouts . | . . . . . . . Manual 9 | . 2 . . 7 . . Terminals 37 | . 8 . . 24 5 . Fabricators . | . . . . . . . Repair Stations . | . . . . . . . Recycling Units 2 | . . . . 2 . . Scanalyzers . | . . . . . . . Garrison Access 6 | . . . . 1 . 5 Terminal Hacks 19 | . 4 . 5 10 . . Record 5 | . . . 5 . . . Prototype ID Bank 3 | . . . . 3 . . Branch Access Points 1 | . . . . 1 . . Terminal Index 1 | . 1 . . . . . Maintenance Status 2 | . 1 . . 1 . . Transport Status 1 | . . . . 1 . . Hauler Manifests 3 | . 1 . . 2 . . Registered Components 2 | . 1 . . 1 . . Registered Prototypes 1 | . . . . 1 . . Fabricator Hacks . | . . . . . . . Repair Station Hacks . | . . . . . . . Recycling Unit Hacks . | . . . . . . . Scanalyzer . | . . . . . . . Garrison Access Hacks 1 | . . . . 1 . . Unlock Access 1 | . . . . 1 . . Unauthorized Hacks 5 | . 1 . . 4 . . Terminals 5 | . 1 . . 4 . . Track 1 | . 1 . . . . . Assimilate 1 | . . . . 1 . . Botnet 2 | . . . . 2 . . Operators 1 | . . . . 1 . . Fabricators . | . . . . . . . Repair Stations . | . . . . . . . Recycling Units . | . . . . . . . Scanalyzers . | . . . . . . . Garrison Access . | . . . . . . . Data Cores Recovered 1 | . . . . 1 . . Used . | . . . . . . . Hacking Detections 17 | . 3 . . 10 3 1 Full Trace Events 2 | . . . . . 1 1 Feedback Events . | . . . . . . . Feedback Blocked . | . . . . . . . Robot Schematics Acquired . | . . . . . . . Robots Built . | . . . . . . . Authchips . | . . . . . . . Time . | . . . . . . . Total Robot Build Rating . | . . . . . . . Part Schematics Acquired . | . . . . . . . Parts Built . | . . . . . . . Authchips . | . . . . . . . Time . | . . . . . . . Total Part Build Rating . | . . . . . . . Parts Repaired . | . . . . . . . Time . | . . . . . . . Parts Recycled . | . . . . . . . Recycled Matter . | . . . . . . . Retrieved Matter . | . . . . . . . Retrieved Components . | . . . . . . . Parts Scanalyzed . | . . . . . . . Part Schematics Acquired . | . . . . . . . Parts Damaged . | . . . . . . . Bothacking | -11 -10 -10 -10 -8 -8 -8 ------------ Run | Yrd Mat Min Sub Mat Gar Mat Used RIF Installer . | . . . . . . . Robots Hacked . | . . . . . . . Non-combat . | . . . . . . . Combat . | . . . . . . . Robot Hacks Applied . | . . . . . . . Relay Couplers Released 13 | . . . . . 13 . Machine Destruction 13 | . . . . . 13 . Fabnet Peak Effective % . | . . . . . . . Robots Rewired . | . . . . . . . Allies Hacked . | . . . . . . . Hacks Repelled . | . . . . . . . Allies | -11 -10 -10 -10 -8 -8 -8 -------- Run | Yrd Mat Min Sub Mat Gar Mat Total Allies 3 | . . 2 . 1 . . Largest Group 2 | . . 2 2 1 . . Highest-Rated Group 45 | . . 45 45 10 . . Highest-Rated Ally 31 | . . 31 31 10 . . Total Orders . | . . . . . . . Ally Attacks 1 | . . . 1 . . . Total Damage . | . . . . . . . Kills . | . . . . . . . Allies Corrupted . | . . . . . . . Allies Melted . | . . . . . . . Intel | -11 -10 -10 -10 -8 -8 -8 ------- Run | Yrd Mat Min Sub Mat Gar Mat Robot Analysis Total . | . . . . . . . Derelict Logs Recovered 2 | . . . 2 . . . Drone Launches . | . . . . . . . Drone Recoveries . | . . . . . . . Exploration | -11 -10 -10 -10 -8 -8 -8 ------------- Run | Yrd Mat Min Sub Mat Gar Mat Turns Passed 8883 | 84 545 436 3398 2195 1742 483 Spaces Moved 3820 | 28 259 133 1756 937 590 117 Core . | . . . . . . . Treads 3591 | 28 259 133 1527 937 590 117 Legs . | . . . . . . . Wheels 229 | . . . 229 . . . Hover . | . . . . . . . Flight . | . . . . . . . Fastest Speed 95 | 160 160 160 95 160 243 163 Average Speed 187 | 160 160 160 169 190 243 242 Slowest Speed 260 | 160 160 160 260 245 243 243 Overloaded Moves . | . . . . . . . Propulsion Burnouts . | . . . . . . . Robots Hopped . | . . . . . . . Cave-ins Triggered . | . . . . . . . Exploration Rate (%) 46 | 4 45 30 86 70 72 18 Regions Visited 6 Branch Regions 2 Pre-discovered Areas 1 | . . . 1 . . . Known Exits Taken 1 | . . . . 1 . . Unknown Exits Taken 4 | 1 1 1 1 . . . Scrap Searched 14 | . . 1 13 . . . Spaces Dug 16 | . . . 6 10 . . Terrain Destroyed 104 | . . . 15 68 2 19 Melee . | . . . . . . . Projectile 8 | . . . 2 . . 6 AOE 96 | . . . 13 68 2 13 Terrain Rammed . | . . . . . . . Walls Destroyed . | . . . . . . . Machines Disabled . | . . . . . . . Actions | -11 -10 -10 -10 -8 -8 -8 --------- Run | Yrd Mat Min Sub Mat Gar Mat Total 4894 | 45 355 311 2013 1198 749 223 Wait 476 | . 64 143 118 95 31 25 Move 3813 | 27 258 132 1755 936 588 117 Hop . | . . . . . . . Pick Up 57 | 1 6 5 14 24 3 4 Fast Attach 20 | 1 . 1 2 12 1 3 Attach 26 | . . 2 4 6 4 10 Detach 4 | . . . 2 2 . . Swap 45 | 2 . 2 15 11 12 3 Drop 43 | 2 3 3 12 15 4 4 Fire 381 | 12 18 23 91 96 86 55 Melee . | . . . . . . . Ram . | . . . . . . . Kick . | . . . . . . . Crush 10 | . 6 . . 1 1 2 Escape Stasis 18 | . . . . . 18 . Rewire . | . . . . . . . Trap . | . . . . . . . Miscellaneous 1 | . . . . . 1 . Route ------- -11/Scrapyard -10/Materials (discovered 2 exits: [*Mat] / [*Min]) -10/Mines (discovered 2 exits: [*Mat] / *Sub) -10/Subcaves (discovered 2 exits: *Mat x2) -8/Materials (discovered 4 exits: *Fac x3 / Gar) -8/Garrison (discovered 3 exits: *Mat x3) -8/Materials History --------- Turn | Location | Event 6 | -11/Scrapyard | Discovered new exit (range 3) 85 | -11/Scrapyard | Entered Materials 268 | -10/Materials | Discovered new exit (range 16) 303 | -10/Materials | Build established: Mutant 576 | -10/Materials | Discovered new exit (range 11) 630 | -10/Materials | Entered Mines 632 | -10/Mines | Joined a pair of Derelicts in attacking an 0b10 outpost 683 | -10/Mines | Discovered new exit (range 10) 776 | -10/Mines | Lost 3 parts (1p1n1w) 843 | -10/Mines | Deemed a non-threat by the Exiles lab entrance 1061 | -10/Mines | Discovered new exit (range 3) 1066 | -10/Mines | Entered Subcaves 1066 | -10/Subcaves | Accompanied by 2 allies 1071 | -10/Subcaves | Led the pair of lost Derelicts to an unsafe place 1118 | -10/Subcaves | Discovered new exit (range 10) 1549 | -10/Subcaves | A swath of the cavern ceiling suddenly collapsed 1576 | -10/Subcaves | Curiously followed by a Cobbler waking with a query about "LVR3C" 1922 | -10/Subcaves | Learned 4 Materials zone layouts 1952 | -10/Subcaves | Visited Clippyterm 1957 | -10/Subcaves | Learned location of Extension (-4) 1957 | -10/Subcaves | Learned Factory emergency access door positions 2577 | -10/Subcaves | Learned 2 Materials zone layouts 2770 | -10/Subcaves | Discovered new exit (range 10) 2905 | -10/Subcaves | Shifting Twisted Machinery released Mak. Hacking Suite 2909 | -10/Subcaves | Shifting Twisted Machinery released Humpback 3116 | -10/Subcaves | Shifting Twisted Machinery released Mak. Shrapnel Gun 3134 | -10/Subcaves | Shifting Twisted Machinery released Riot Gun 3167 | -10/Subcaves | Ambushed by Subdwellers from Twisted Machinery 3200 | -10/Subcaves | Build established: Derelict-Mutant 3426 | -10/Subcaves | Disturbed a concealed Subdweller 3427 | -10/Subcaves | Core integrity fell below 50% 3562 | -10/Subcaves | Disturbed a concealed Subdweller 3750 | -10/Subcaves | Shifting Twisted Machinery released Sub. Laser 3768 | -10/Subcaves | Shifting Twisted Machinery released Shrapnel Trap 3849 | -10/Subcaves | A swath of the cavern ceiling suddenly collapsed 4179 | -10/Subcaves | A Subdweller sparked back to life 4179 | -10/Subcaves | A Subdweller sparked back to life 4197 | -10/Subcaves | Core integrity fell below 20% 4464 | -10/Subcaves | Entered Materials 4464 | -8/Materials | Evolved 4 slots: Propulsion x1, Utility x3 4465 | -8/Materials | Identified exit to Factory 4569 | -8/Materials | Garrison activated, responded to threat 4602 | -8/Materials | Identified exit to Garrison 4833 | -8/Materials | Garrison activated, responded to threat 5214 | -8/Materials | Build established: Mutant 5437 | -8/Materials | Discovered exit to Factory (range 16) 6308 | -8/Materials | Discovered exit to Factory (range 13) 6594 | -8/Materials | Destroyed 7 combat bots 6659 | -8/Materials | Entered Garrison 6738 | -8/Garrison | Triggered checkpoint 6848 | -8/Garrison | Garrison Relay disabled 7205 | -8/Garrison | Discovered new exit (range 10) 7263 | -8/Garrison | Triggered checkpoint 7315 | -8/Garrison | Garrison Relay disabled 7423 | -8/Garrison | Triggered checkpoint 7774 | -8/Garrison | Discovered new exit (range 8) 7853 | -8/Garrison | Triggered checkpoint 7883 | -8/Garrison | Core integrity fell below 50% 7911 | -8/Garrison | Lost 3 parts (1p2u) 8000 | -8/Garrison | Triggered checkpoint 8098 | -8/Garrison | Garrison Relay disabled 8146 | -8/Garrison | Discovered new exit (range 11) 8171 | -8/Garrison | Build established: Scavenger-Mutant 8185 | -8/Garrison | Attempted to access garrison exit controls, blocked by remote lockdown 8401 | -8/Garrison | Entered Materials 8682 | -8/Materials | Garrison activated, responded to threat 8801 | -8/Materials | First assault squad dispatched 8817 | -8/Materials | Core integrity fell below 20% 8852 | -8/Materials | Destroyed 12 combat bots 8884 | -8/Materials | Destroyed by G-47 Trooper with Particle Gun Last Messages --------------- 08860_ U-05 Engineer lays Concrete. 08863_ U-05 Engineer builds a Wall. 08863_ Y-45 Defender destroyed. 08865_ U-05 Engineer builds a Wall. 08866_ S-10 Pest destroyed. 08867_ R-06 Scavenger collects Lgt. Assault Rifle. 08869_ U-05 Engineer lays Concrete. 08871_ G-47 Trooper knocked back. 08874_ U-05 Engineer lays Concrete. 08874_ S-10 Pest knocked back. 08876_ U-05 Engineer lays Concrete. 08876_ S-10 Pest destroyed. 08877_ U-05 Engineer builds a Wall. 08877_ U-05 Engineer lays Concrete. 08879_ K-01 Serf collects debris. 08879_ U-05 Engineer lays Concrete. 08882_ G-47 Trooper emerges from the garrison. 08882_ K-01 Serf collects debris. 08882_ U-05 Engineer lays Concrete. 08883_ Acquired Aluminum Leg. Map ----- +----------------------------------------------------+ | ?????????????????????????????????????????????????? | | ???#####?????????????????????????????????????????? | | ???# ?????????????????????????????????????????? | | ???# """"????????????????????????????????????????? | | ???# """""???????????????????????????????????????? | | #### """""???????????????????????????????????????? | | # """""???????????????????????????????????????? | | # """"" ?????##???????????????????????????????? | | + """"" ?#### #????? ???????????????????????? | | # """"" ?# T ??? #??????????????????????? | | # !# """ ## ##?????????????????????? | | ########### !%""" # r #?????????????????????? | | # # """ # #?????????????????????? | | # # + #?????????????????????? | | + # """ # ??????????????????????? | | # # !=""" # !??????????????????????? | | # #%!%""" ## #??????????????????????? | | #? !! #!=%! ## =%#??????????????????????? | | #? ![ #/#########%%[#??????????????????????? | | #?? ! =#[##?????## #??????????????????????? | | ###########%######### %=##?????????????????????? | | =!=w[==% g###????????????????????? | | ##############= *%#=##???????????????????? | | #?????????####= %%"" #???????????????????? | | #????????????# u=gG"#???????? ?????????? | | ###????????????# %@"" #????! " "?????????? | | ???????????????# ""T""% k#### !!] "R"?????????? | | ???????????????# """"" != !!] """?????????? | | ???????????????+ = = ??????? | | ?????????????? # u % ??????? | | ?????????????" ####### ########### ???????? | | ????????????""??????? % %??????????????#???????? | | ????????????""?????? % ??????????????????????? | | ??????????????????? """ """??????????????????????? | | ??????????????????# """ """??????????????????????? | | ??????????????????# """ """??????????????????????? | | ??????????????????#??? ??????????????????????? | | ?????????????????????? ?????????????????????????? | | ??????????????????????#??????????????????????????? | | | | | | | | | | | | | | | | | | | | | | | +----------------------------------------------------+ Best States ------------- Heat Dissipation 59 Energy Generation 15 Energy Capacity 250 Matter Stores 300 Matter Capacity 300 Sight Range 16 Terrain Scan Density 10 Armor Coverage 525 Evasion (%) 41 Recoil Reduction 3 Offensive Hacking 10 Item Schematics ----------------- None Robot Schematics ------------------ None Fabricated ------------ Nothing Alien Tech Used ----------------- None Achievements -------------- None Challenges ------------ None Game ------ Seed PointFlyingReconstructor Manual? 0 Play Time 00:56:51 Cumulative 283.2 hours Start 2024.10.20 @ 12:09:25 End 2024.10.20 @ 13:07:10 Sessions 1 Manual Loads 0 Difficulty Rogue Special Mode None Game No. 164 Rogue 164 Adventurer 0 Explorer 0 Win Type - Total 15 Types 3/2/6/2/1/0/1/0/0 Lore% 81 Gallery% 82 Achievement% 72 Wizard Run 0 Options --------- Layout 0 ASCII 0 Keyboard 0 Movement Arrows Keybinds 0 Fullscreen 2 Font 18/SmallcapsGlow Map View 76x50 Zoom Use 0% Tactical HUD 1 Map Filters NONE Filters NONE Steam 1 RUN: 7493755c-e969-4f45-9b01-b25d5db7d363